bitfinex-derivatives/quotes_ETHF0:USTF0_20250807
["timestamp","ask_amount","ask_price","bid_price","bid_amount"]
[1754601258340,2.5847,3868.8,3868.7,0.51682]
[1754601260740,2.5847,3868.8,3868.7,0.94672]
[1754601262749,2.5847,3868.8,3868.7,0.51682]
[1754601263238,0.5168,3869.0,3868.3,3.2078]
[1754601263239,1.4876,3868.4,3868.3,3.2078]
[1754601263442,1.5498,3868.0,3867.7,2.31254817]
[1754601263645,2.5847,3867.8,3867.7,0.51696]
[1754601263838,43.3847,3867.8,3867.7,0.51696]
[1754601264039,43.3847,3867.8,3867.7,0.94686]
[1754601264240,43.3847,3867.8,3867.7,1.58476]
[1754601264540,43.3847,3867.8,3867.7,1.82316]
[1754601265546,2.5847,3867.8,3867.7,1.82316]
[1754601266444,2.5847,3867.8,3867.7,2.19746]
[1754601267643,2.5847,3867.8,3867.7,1.95906]
[1754601267952,2.5847,3867.8,3867.7,1.58476]
[1754601268150,2.5847,3867.8,3867.7,0.51696]
[1754601269341,40.8,3868.2,3867.7,1.0122]
[1754601269652,40.8,3868.2,3867.5,3.72479]
[1754601269653,2.5847,3867.6,3867.5,3.72479]
[1754601269953,2.5847,3867.6,3867.5,0.51699]
[1754601270146,1.55189,3867.6,3867.1,3.6377]
[1754601270344,2.5847,3867.2,3867.1,4.15474]
[1754601270543,2.5847,3867.2,3867.1,4.49814]
[1754601270952,2.5847,3867.2,3867.1,4.79264]
[1754601271150,2.5847,3867.2,3867.1,5.03104]
[1754601271352,2.5847,3867.2,3867.1,5.40534]
[1754601274544,2.5847,3867.2,3867.1,4.79264]
[1754601274953,2.5847,3867.2,3867.1,5.03104]
[1754601275253,2.5847,3867.2,3867.1,5.96084]
[1754601281949,0.5352,3867.2,3867.1,5.96084]
[1754601282157,1.0971,3867.2,3867.1,5.96084]
[1754601282958,0.5352,3867.2,3867.1,5.96084]
[1754601283159,1.0805,3867.2,3867.1,5.96084]
[1754601284555,1.5283,3867.2,3867.1,5.96084]
[1754601284855,1.0805,3867.2,3867.1,5.96084]
[1754601286056,1.7172,3867.2,3867.1,5.96084]
[1754601286256,2.5314,3867.2,3867.1,5.96084]
[1754601287153,3.03703,3868.0,3867.9,0.51693]
[1754601287354,1.0692,3867.9,3867.8,0.51694]
[1754601287665,2.5201,3867.9,3867.8,0.51694]
[1754601289264,3.03705,3867.8,3867.7,0.51695]
[1754601289568,2.5201,3867.8,3867.7,0.51695]
[1754601299174,1.0031,3867.7,3867.6,0.51696]
[1754601299374,2.5201,3867.7,3867.6,0.95576]
[1754601300272,2.5201,3867.7,3867.6,1.29706]
[1754601300474,2.5201,3867.7,3867.6,1.80246]
[1754601301876,2.5201,3867.7,3867.6,1.58356]
[1754601302578,2.5201,3867.7,3867.6,1.29706]
[1754601304078,2.5201,3867.7,3867.6,1.93386]
[1754601304282,2.5201,3867.7,3867.6,2.68196]
[1754601305275,0.66129399,3868.0,3867.9,0.51693]
[1754601305473,0.23760682,3868.3,3868.1,2.68191]
[1754601305673,0.806,3868.2,3868.1,1.49501]
[1754601305874,1.8752,3868.2,3868.1,1.49501]
[1754601306177,0.23760682,3868.2,3868.1,2.68191]
[1754601306384,0.5239,3868.5,3868.1,2.68191]
[1754601306573,0.78277471,3868.6,3868.4,1.49496]
[1754601306778,41.8692,3868.6,3868.5,2.165]
[1754601307574,40.8,3868.6,3868.5,2.39227193]
[1754601307975,41.8692,3868.6,3868.5,2.39227193]
[1754601308181,41.8692,3868.6,3868.5,2.165]
[1754601308377,2.49154,3869.4,3869.0,0.4388]
[1754601308581,1.8752,3868.9,3868.8,2.68181]
[1754601308783,1.0692,3868.9,3868.8,2.68181]
[1754601308983,41.8692,3868.9,3868.8,2.68181]
[1754601309378,1.0031,3869.6,3869.5,1.58332]
[1754601309582,1.0031,3869.6,3869.5,1.80222]
[1754601309874,0.22904146,3869.7,3869.5,2.14183821]
[1754601310078,1.8752,3870.1,3870.0,2.24284]
[1754601310277,2.5201,3870.1,3870.0,2.68164]
[1754601310481,43.3201,3870.1,3870.0,2.68164]
[1754601310675,43.54914146,3870.1,3870.0,2.68164]
[1754601310873,43.3201,3870.1,3870.0,2.68164]
[1754601311073,41.3239,3870.1,3870.0,2.68164]
[1754601311483,1.2485,3870.5,3870.4,1.4947]
[1754601311776,1.7938,3870.5,3870.4,2.6816]
[1754601312179,2.2416,3870.5,3870.4,2.6816]
[1754601312579,2.5201,3870.5,3870.4,0.5166]
[1754601312889,2.5201,3870.5,3870.4,0.9554]
[1754601313092,2.5201,3870.5,3870.4,1.7829]
[1754601313383,2.5201,3870.5,3870.4,2.1025]
[1754601313684,2.5201,3870.5,3870.4,5.8279]
[1754601313886,40.8,3870.9,3870.8,1.17174]
[1754601314079,42.3017,3870.9,3870.8,1.60434]
[1754601315080,42.3017,3870.9,3870.8,2.12244]
[1754601316192,42.3017,3870.9,3870.8,1.92394]
[1754601316383,42.3017,3870.9,3870.3,0.51661]
[1754601316384,2.4909,3870.5,3870.3,0.51661]
[1754601316583,2.4909,3870.4,3870.3,1.60441]
[1754601316787,2.4909,3870.4,3870.3,2.63671]
[1754601317888,1.0757,3870.4,3870.3,2.63671]
[1754601318293,2.4909,3870.4,3870.3,2.63671]
[1754601318493,2.4909,3870.4,3870.3,2.12041]
[1754601318995,2.4909,3870.4,3870.3,2.63671]
[1754601319989,2.0649,3870.4,3870.3,2.63671]
[1754601320184,2.4909,3870.4,3870.3,2.63671]
[1754601324196,1.0757,3870.4,3870.3,2.63671]
[1754601324791,2.4909,3870.7,3870.6,2.63667]
[1754601325094,2.4909,3870.7,3870.6,2.12037]
[1754601325291,2.4909,3870.7,3870.6,2.63667]
[1754601326193,3.4909,3871.0,3870.9,1.92183]
[1754601326398,3.4909,3871.0,3870.9,2.63663]
[1754601326793,3.4909,3871.0,3870.9,2.12033]
[1754601327598,0.279,3870.5,3870.4,3.7244]
[1754601327804,2.4909,3870.5,3870.4,4.8122]
[1754601327998,2.4909,3870.5,3870.4,5.0107]
[1754601328190,2.4909,3870.5,3870.4,5.3282]
[1754601328398,3.4909,3871.0,3870.9,0.51653]
[1754601328597,3.4909,3871.0,3870.9,1.60433]
[1754601329200,3.4909,3871.0,3870.9,0.94913]
[1754601329400,3.4909,3871.0,3870.9,0.51653]
[1754601330004,3.4909,3871.0,3870.9,0.94913]
[1754601330202,3.4909,3871.0,3870.9,1.30983]
[1754601330402,3.4909,3871.0,3870.9,2.12033]
[1754601331100,3.4909,3871.0,3870.9,1.92183]
[1754601331598,3.4909,3871.0,3870.9,1.60433]
[1754601331904,3.4909,3871.0,3870.9,0.51653]
[1754601333700,3.4909,3871.0,3870.9,1.30983]
[1754601334906,3.4909,3871.0,3870.9,0.51653]
[1754601337408,3.4909,3871.0,3870.9,0.94913]
[1754601338912,3.4909,3871.0,3870.9,0.51653]
[1754601339205,4.00742,3871.0,3870.8,0.51654]
[1754601339406,1.50575,3870.8,3870.7,0.51655]
[1754601339610,2.4909,3870.8,3870.7,0.51655]
[1754601340505,1.5859,3870.7,3870.6,0.51656]
[1754601340706,1.5017,3870.6,3870.5,0.51658]
[1754601340907,2.4909,3870.6,3870.5,0.51658]
[1754601341302,3.00748,3870.6,3870.4,3.72439]
[1754601341606,2.4909,3870.5,3870.4,3.72439]
[1754601341805,1.5017,3870.4,3870.3,0.5166]
[1754601342005,2.4909,3870.4,3870.3,0.5166]
[1754601342910,43.2909,3870.4,3870.3,0.5166]
[1754601343111,43.94799472,3870.4,3870.3,0.955]
[1754601343312,43.94799472,3870.4,3870.3,1.596]
[1754601344510,43.94799472,3870.4,3870.3,1.2984]
[1754601345313,43.2909,3870.4,3870.3,2.0663]
[1754601346314,42.8649,3870.4,3870.3,2.0663]
[1754601346614,43.2753,3870.4,3870.3,2.565]
[1754601347614,43.2753,3870.4,3870.3,0.5166]
[1754601347812,43.2753,3870.4,3870.3,0.955]
[1754601348012,1.7343,3870.4,3870.3,1.8854]
[1754601348211,2.1447,3870.4,3870.3,2.565]
[1754601348506,2.4477,3870.4,3870.3,2.565]
[1754601349715,2.4477,3870.4,3870.3,5.7728]
[1754601351514,2.4477,3870.4,3870.3,2.565]
[1754601352421,2.4477,3870.4,3870.3,2.0663]
[1754601353516,0.5356,3870.4,3870.3,5.7728]
[1754601353718,0.5391,3870.7,3870.6,2.56497]
[1754601353915,1.7776,3870.9,3870.8,2.56495]
[1754601354115,42.5776,3870.9,3870.8,2.56495]
[1754601354821,1.7776,3870.9,3870.8,2.56495]
[1754601355122,2.1371,3870.9,3870.8,2.56495]
[1754601355423,2.4401,3870.9,3870.8,2.56495]
[1754601356817,1.22528,3871.0,3870.9,2.0484]
[1754601357022,2.4401,3870.9,3870.8,0.95495]
[1754601357524,2.4401,3870.9,3870.8,1.29835]
[1754601359223,2.4401,3870.9,3870.8,1.59595]
[1754601360121,2.4401,3870.9,3870.8,1.77685]
[1754601360319,2.4401,3870.9,3870.8,2.06625]
[1754601360521,2.4401,3870.9,3870.8,2.56495]
[1754601364625,2.4401,3870.9,3870.8,0.51655]
[1754601364821,0.51656,3870.7,3870.3,3.2078]
[1754601365028,2.4401,3870.4,3870.3,3.72441]
[1754601365222,2.4401,3870.4,3870.3,0.51661]
[1754601365726,0.51664,3870.2,3870.0,0.51665]
[1754601366027,2.95675,3870.0,3869.7,0.51669]
[1754601366217,2.4401,3869.8,3869.7,0.51669]
[1754601366421,43.2401,3869.8,3869.7,0.51669]
[1754601367523,43.2401,3869.8,3869.7,1.77699]
[1754601367832,43.2401,3869.8,3869.7,2.06639]
[1754601368030,43.2401,3869.8,3869.7,2.56509]
[1754601368930,2.4401,3869.8,3869.7,2.06639]
[1754601371231,2.4401,3869.6,3869.5,3.2078]
[1754601372333,1.0021,3869.6,3869.5,0.51672]
[1754601372531,1.0021,3869.6,3869.4,0.51672]
[1754601373034,1.0021,3869.5,3869.4,0.51672]
[1754601373234,2.4545,3869.5,3869.4,0.51672]
[1754601373434,2.4545,3869.5,3869.4,2.01972]
[1754601373732,2.019,3869.5,3869.4,2.01972]
[1754601373928,2.4545,3869.5,3869.4,2.50442]
[1754601374133,2.4545,3869.5,3869.4,1.85292]
[1754601374338,2.4545,3869.5,3869.4,2.01972]
[1754601375735,2.4545,3869.5,3869.4,2.50442]
[1754601379234,2.4545,3869.5,3869.4,2.01972]
[1754601380346,2.4545,3869.5,3869.4,1.58602]
[1754601385338,2.4545,3869.5,3869.4,1.75282]
[1754601385841,2.4545,3869.5,3869.4,1.58602]
[1754601387040,2.4545,3869.5,3869.3,0.51674]
[1754601387243,2.4006,3869.4,3869.3,0.51674]
[1754601389840,45.29941,3870.1,3869.6,0.5167]
[1754601389841,44.0078,3870.1,3869.6,0.5167]
[1754601390043,2.4006,3869.7,3869.6,1.9975]
[1754601390639,2.4006,3869.7,3869.6,1.8392]
[1754601390845,2.4006,3869.7,3869.6,1.586]
[1754601391542,2.4006,3869.7,3869.6,0.5167]
[1754601394645,2.4006,3869.7,3869.6,1.2905]
[1754601395644,1.39694047,3870.0,3869.9,1.15627]
[1754601395849,1.7792,3870.0,3869.9,2.47357]
[1754601396043,2.4006,3870.0,3869.9,2.47357]
[1754601397648,2.4006,3870.0,3869.9,1.99747]
[1754601398247,2.4006,3870.0,3869.9,1.83917]
[1754601398945,1.9651,3870.0,3869.9,1.83917]
[1754601399143,2.4006,3870.0,3869.9,2.47357]
[1754601401050,2.4006,3870.0,3869.9,1.3225]
[1754601401248,2.4006,3870.0,3869.9,1.0693]
[1754601404252,2.4006,3870.0,3869.9,1.4555]
[1754601404954,2.4006,3870.0,3869.9,1.9219]
[1754601405158,0.4716,3870.3,3869.9,3.21356]
[1754601405453,0.4844,3870.3,3870.2,2.40523]
[1754601405659,1.7292,3870.3,3870.2,2.40523]
[1754601405956,2.3431,3870.3,3870.2,2.40523]
[1754601406160,1.9134,3870.3,3870.2,2.40523]
[1754601406352,1.2902,3870.3,3870.2,2.40523]
[1754601406552,40.8,3870.5,3870.4,1.9388]
[1754601406753,2.68968,3871.0,3870.9,1.93873]
[1754601407055,0.83098,3871.0,3870.9,2.40513]
[1754601407355,42.10258,3871.0,3870.9,2.40513]
[1754601407746,0.83098,3871.0,3870.9,2.40513]
[1754601407955,0.34658,3871.0,3870.9,2.40513]
[1754601408955,0.83098,3871.0,3870.9,2.40513]
[1754601409158,0.34658,3871.0,3870.9,2.40513]
[1754601409358,0.8279,3871.6,3871.5,0.8431]
[1754601409661,0.8279,3871.6,3871.5,1.2737]
[1754601409662,2.3431,3871.6,3871.5,1.2737]
[1754601410464,2.3431,3871.6,3871.5,1.79015]
[1754601410666,2.3431,3871.6,3871.5,1.2737]
[1754601411961,0.51642,3871.8,3870.9,3.2078]
[1754601411962,2.3431,3871.0,3870.9,3.2078]
[1754601412369,43.1431,3871.0,3870.8,0.51654]
[1754601412565,0.9574,3870.8,3870.7,0.51655]
[1754601412759,2.3431,3870.8,3870.7,0.51655]
[1754601413368,2.3431,3870.8,3870.7,0.94715]
[1754601413662,2.0634,3870.7,3870.6,0.51657]
[1754601413870,2.3431,3870.7,3870.6,0.51657]
[1754601414370,2.3431,3870.7,3870.6,1.27077]
[1754601415068,2.3431,3870.7,3870.6,0.84017]
[1754601415265,2.3431,3870.7,3870.6,1.27077]
[1754601415665,2.3431,3870.7,3870.6,1.55257]
[1754601421463,2.85966,3870.7,3870.5,3.2078]
[1754601421663,2.3431,3870.2,3870.1,4.99814]
[1754601421875,0.956,3870.2,3870.1,5.61304]
[1754601422370,2.3431,3870.2,3870.1,5.61304]
[1754601422970,0.8058,3870.2,3870.1,5.61304]
[1754601423175,2.3431,3870.8,3870.7,0.94715]
[1754601423475,2.3431,3870.8,3870.7,0.51655]
[1754601423680,2.3431,3870.8,3870.7,0.94715]
[1754601424572,2.3431,3870.8,3870.7,1.93875]
[1754601424776,1.9134,3870.8,3870.7,2.40515]
[1754601425167,2.3431,3870.8,3870.7,2.40515]
[1754601425673,0.956,3870.8,3870.7,2.40515]
[1754601426775,1.9134,3870.8,3870.7,2.40515]
[1754601428280,40.8,3871.2,3871.1,1.9387]
[1754601428281,42.1857,3871.2,3871.1,1.9387]
[1754601429174,42.1857,3871.2,3871.1,2.4051]
[1754601429175,0.4844,3871.2,3871.1,2.4051]
[1754601429479,2.3431,3871.2,3871.1,2.4051]
[1754601430187,2.3431,3871.2,3871.1,1.9387]
[1754601430683,2.3431,3871.2,3871.1,2.4051]
[1754601432280,2.3431,3871.2,3871.1,1.9387]
[1754601432685,2.3431,3871.2,3871.1,2.4051]
[1754601433580,2.3431,3871.2,3871.1,1.9387]
[1754601434884,2.3431,3871.2,3871.1,2.3895]
[1754601435882,0.9519,3871.0,3870.9,3.72433]
[1754601436083,0.9519,3871.0,3870.9,4.76783]
[1754601436084,2.3896,3871.0,3870.9,4.76783]
[1754601439681,2.3896,3871.0,3870.9,5.56423]
[1754601440677,42.2377,3871.4,3871.3,1.34698]
[1754601440882,42.2377,3871.4,3871.3,1.90558]
[1754601442988,2.3896,3870.6,3870.5,5.49568]
[1754601443187,2.3896,3870.6,3870.5,5.62858]
[1754601443485,2.3896,3870.6,3870.5,4.04948]
[1754601444081,2.3896,3870.6,3870.5,4.56458]
[1754601444290,2.3896,3870.6,3870.4,0.51659]
[1754601444480,0.6324,3870.5,3870.4,0.51659]
[1754601444675,2.3896,3870.5,3870.4,0.51659]
[1754601445183,2.3896,3870.5,3870.4,0.84169]
[1754601445982,2.90619,3870.5,3870.4,0.3251]
[1754601446289,0.9519,3870.3,3870.2,0.84172]
[1754601446482,2.3896,3870.3,3870.2,1.35682]
[1754601446683,2.3896,3870.3,3870.2,1.78252]
[1754601446879,2.3896,3870.3,3870.2,2.07522]
[1754601447782,0.9519,3870.3,3869.8,0.9408]
[1754601448087,2.3896,3869.9,3869.7,3.2078]
[1754601448284,1.4377,3869.8,3869.7,3.2078]
[1754601448482,43.1896,3869.8,3869.7,3.2078]
[1754601448682,43.1896,3869.8,3869.7,3.5329]
[1754601448988,43.1896,3869.8,3869.7,4.04959]
[1754601449286,43.1896,3869.8,3869.7,0.84179]
[1754601449486,43.1896,3869.8,3869.7,0.3251]
[1754601450186,2.3896,3869.7,3869.6,0.5167]
[1754601450390,2.3896,3869.7,3869.6,0.8418]
[1754601450584,2.3896,3869.7,3869.6,1.7826]
[1754601451589,2.3896,3869.7,3869.6,2.0753]
[1754601451788,2.3896,3869.7,3869.6,2.4209]
[1754601463195,2.3896,3869.7,3869.6,2.288]
[1754601463692,1.6693,3869.7,3869.6,2.4068]
[1754601463895,42.1981,3870.1,3870.0,2.04045]
[1754601465892,42.1981,3870.1,3870.0,0.51665]
[1754601467696,42.1981,3870.1,3870.0,1.13925]
[1754601467893,41.2858,3870.1,3870.0,2.34925]
[1754601468093,1.29121,3871.3,3870.6,0.84346]
[1754601468094,1.3499,3870.7,3870.6,0.84346]
[1754601468299,2.2994,3870.7,3870.6,0.84346]
[1754601468497,43.0994,3870.7,3870.6,0.84346]
[1754601469598,43.0994,3870.7,3870.6,1.74466]
[1754601469794,43.0994,3870.7,3870.6,2.04036]
[1754601470299,2.2994,3870.7,3870.6,2.34916]
[1754601471298,1.8357,3870.7,3870.6,2.34916]
[1754601471702,1.0734,3870.7,3870.6,2.34916]
[1754601471904,0.796,3870.7,3870.6,2.34916]
[1754601472497,2.2994,3871.3,3871.2,0.84339]
[1754601472705,43.0994,3871.3,3871.2,0.3269]
[1754601473194,0.9013,3871.1,3871.0,1.2281]
[1754601473394,2.2994,3871.1,3871.0,1.2281]
[1754601473994,2.2994,3871.1,3871.0,1.74461]
[1754601474603,2.2994,3871.1,3871.0,1.2281]
[1754601475804,2.2994,3871.1,3871.0,0.3269]
[1754601476502,2.2994,3871.1,3871.0,1.7138]
[1754601476698,2.2994,3870.6,3870.5,3.2078]
[1754601476902,2.2994,3870.6,3870.5,5.0404]
[1754601477104,1.9892,3870.6,3870.5,5.0404]
[1754601477305,2.2994,3870.6,3870.5,5.0404]
[1754601477501,3.2078,3871.2,3870.5,5.0404]
[1754601477704,4.6256,3871.2,3871.1,0.3269]
[1754601477904,4.6256,3871.2,3871.1,1.2281]
[1754601478301,6.0237,3871.2,3871.1,1.2281]
[1754601478607,6.0237,3871.2,3871.1,0.3269]
[1754601479807,5.5072,3871.2,3871.1,0.3269]
[1754601481211,0.2774,3870.7,3870.6,2.04037]
[1754601481506,0.2774,3870.7,3870.5,3.72438]
[1754601481507,2.2994,3870.7,3870.5,3.72438]
[1754601481702,1.9857,3870.6,3870.5,4.95248]
[1754601481909,2.2994,3870.6,3870.5,5.24818]
[1754601482709,2.2994,3870.6,3870.5,5.36698]
[1754601483308,2.2994,3870.6,3870.5,5.55698]
[1754601485509,18.32751,3871.1,3870.9,0.51652]
[1754601485699,1.8136,3871.0,3870.9,1.44792]
[1754601485905,2.2994,3871.0,3870.9,1.44792]
[1754601486111,2.2994,3871.0,3870.9,2.34912]
[1754601486311,2.2994,3871.0,3870.9,2.23032]
[1754601486509,2.2994,3871.0,3870.9,2.04032]
[1754601487011,2.2994,3871.0,3870.9,1.5238]
[1754601487609,3.2078,3871.8,3870.9,4.49913]
[1754601487813,2.2994,3871.4,3871.3,1.32907]
[1754601488317,2.2994,3870.4,3870.3,3.72441]
[1754601488518,2.2994,3870.4,3870.3,5.55701]
[1754601489315,2.2994,3870.4,3870.3,5.43821]
[1754601489816,2.2994,3870.4,3870.3,5.55701]
[1754601490615,40.8,3870.8,3870.3,5.55701]
[1754601490809,42.1981,3870.8,3870.7,2.34916]
[1754601491116,42.1981,3870.8,3870.7,2.23036]
[1754601491509,42.1981,3870.8,3870.7,0.84346]
[1754601492210,42.1981,3870.8,3870.7,1.74466]
[1754601493515,42.1981,3870.8,3870.7,1.30106]
[1754601493716,42.1981,3870.8,3870.7,1.74516]
[1754601494916,42.1981,3870.8,3870.7,2.18576]
[1754601495117,42.1981,3870.8,3870.7,2.28706]
[1754601495624,1.3981,3870.8,3870.7,2.28706]
[1754601496421,1.6979,3870.8,3870.7,2.28706]
[1754601496823,40.8,3871.1,3871.0,0.51652]
[1754601497022,42.1826,3871.1,3871.0,2.29552]
[1754601497617,0.7832,3871.1,3871.0,2.29552]
[1754601497818,1.3816,3871.1,3871.0,2.29552]
[1754601498019,2.2808,3871.1,3871.0,2.29552]
[1754601500519,0.5984,3870.9,3870.4,3.2078]
[1754601500726,2.2808,3870.5,3870.4,3.72438]
[1754601501118,43.0808,3870.5,3870.4,3.72438]
[1754601501522,2.2808,3870.5,3870.4,4.04998]
[1754601502023,43.0808,3870.5,3870.4,4.04998]
[1754601502616,41.6982,3870.5,3870.3,0.5166]
[1754601502817,41.6982,3870.5,3870.0,3.2078]
[1754601502818,2.79743,3870.2,3870.0,3.2078]
[1754601503022,2.2808,3869.8,3869.7,0.84229]
[1754601503212,2.2808,3869.8,3869.7,1.75379]
[1754601503415,2.2808,3869.8,3869.7,2.03229]
[1754601504029,0.4834,3870.4,3870.1,0.7662]
[1754601504222,2.2808,3870.3,3870.2,1.779]
[1754601505019,2.2808,3870.3,3870.2,2.29561]
[1754601505524,1.3816,3870.3,3870.2,2.29561]
[1754601506127,2.2808,3870.3,3870.2,2.29561]
[1754601507428,1.8046,3870.3,3870.2,2.29561]
[1754601507630,1.3816,3870.3,3870.2,2.29561]
[1754601508227,2.2808,3870.5,3870.4,2.2956]
[1754601508431,2.2808,3870.5,3870.4,0.8422]
[1754601508633,2.2808,3870.5,3870.4,0.5166]
[1754601508931,2.2808,3870.5,3870.4,0.8422]
[1754601509125,2.2808,3870.5,3870.4,1.3096]
[1754601509334,2.2808,3870.5,3870.4,1.7537]
[1754601510136,2.2808,3870.5,3870.4,2.1943]
[1754601510326,2.2808,3870.5,3870.4,2.2956]
[1754601514238,0.7832,3870.5,3870.4,2.2956]
[1754601514438,1.3816,3870.5,3870.4,2.2956]
[1754601514637,2.2808,3870.5,3870.4,2.2956]
[1754601516237,3.2078,3870.9,3870.4,1.779]
[1754601516540,2.2808,3871.0,3870.9,1.2371]
[1754601516736,43.0808,3871.0,3870.9,1.2371]
[1754601516934,43.0808,3871.0,3870.9,0.793]
[1754601517135,43.0808,3871.0,3870.9,0.3256]
[1754601517736,43.0808,3871.0,3870.9,0.793]
[1754601517941,43.0808,3871.0,3870.9,1.2371]
[1754601522845,43.0808,3871.0,3870.9,1.5156]
[1754601529350,43.0808,3871.0,3870.9,1.2371]
[1754601530948,43.0808,3871.0,3870.9,1.5232]
[1754601533349,43.0808,3871.0,3870.9,1.6034]
[1754601534349,43.0808,3871.0,3870.9,1.7317]
[1754601534550,43.0808,3871.0,3870.9,1.6515]
[1754601534750,43.0808,3871.0,3870.9,1.7317]
[1754601535455,42.1816,3871.0,3870.9,1.7317]
[1754601535651,43.046,3871.0,3870.9,1.7317]
[1754601535954,2.76835,3871.5,3871.4,1.1755]
[1754601536151,3.65031511,3871.5,3871.4,1.1755]
[1754601536353,44.45031511,3871.5,3871.4,1.1755]
[1754601537051,43.93386177,3871.5,3871.4,1.1755]
[1754601537756,43.93386177,3871.5,3871.4,1.4616]
[1754601537956,43.93386177,3871.5,3871.4,1.5418]
[1754601538351,43.93386177,3871.5,3871.4,1.4616]
[1754601539051,43.93386177,3871.5,3871.4,1.5899]
[1754601539256,43.93386177,3871.5,3871.4,1.6701]
[1754601539558,43.93386177,3871.5,3871.4,1.4616]
[1754601539753,43.9337929,3871.5,3871.4,1.4616]
[1754601541554,43.9337929,3871.5,3871.4,1.6701]
[1754601541753,1.3875,3871.5,3871.4,1.6701]
[1754601541949,2.03214848,3871.5,3871.4,1.6701]
[1754601542152,2.2519,3871.5,3871.4,1.6701]
[1754601551367,2.2519,3871.0,3870.9,3.5218]
[1754601551566,2.2519,3871.0,3870.9,0.314]
[1754601552971,2.2519,3871.0,3870.9,0.83052]
[1754601553564,0.9187,3870.6,3870.5,3.2078]
[1754601553868,2.2938,3870.6,3870.5,3.72437]
[1754601554369,2.2938,3870.6,3870.5,4.93207]
[1754601554866,2.2938,3870.6,3870.5,4.04387]
[1754601555371,0.7514,3870.6,3870.5,5.39447]
[1754601555770,1.6836,3870.6,3870.5,5.39447]
[1754601555970,0.7514,3870.6,3870.5,5.39447]
[1754601556469,1.6836,3870.6,3870.5,5.39447]
[1754601557471,1.993,3870.6,3870.5,5.39447]
[1754601557763,1.1952984,3871.1,3871.0,0.51651]
[1754601557965,2.52375581,3871.1,3871.0,2.01171]
[1754601558665,2.52375581,3871.1,3871.0,2.11931]
[1754601558862,2.2938,3871.1,3871.0,2.18661]
[1754601559066,0.4429,3871.1,3871.0,1.23111]
[1754601559566,1.0608,3871.1,3871.0,1.23111]
[1754601559869,2.2938,3871.1,3871.0,2.18661]
[1754601561668,2.2938,3871.1,3871.0,2.11931]
[1754601561871,2.2938,3871.1,3871.0,2.01171]
[1754601562771,2.2938,3871.1,3871.0,2.18661]
[1754601565374,2.2938,3871.1,3870.5,4.49923]
[1754601565375,42.1751,3871.4,3871.3,2.07897]
[1754601565572,43.06196419,3871.4,3871.3,2.07897]
[1754601565770,43.06196419,3871.4,3871.3,2.01167]
[1754601566167,1.3616,3871.6,3871.5,1.23104]
[1754601566472,2.2938,3871.6,3871.5,2.18654]
[1754601566971,2.95068383,3871.6,3871.5,2.18654]
[1754601567363,40.8,3871.7,3871.5,2.18654]
[1754601567567,40.8,3871.7,3870.9,4.49911]
[1754601567568,1.6836,3871.6,3871.0,0.0673]
[1754601567770,0.9187,3871.1,3870.9,3.2078]
[1754601567969,0.51651,3871.0,3870.9,3.2078]
[1754601568170,0.51651,3871.0,3870.7,0.51654]
[1754601568171,1.43521,3871.0,3870.7,0.51654]
[1754601568381,2.2938,3870.8,3870.7,0.51654]
[1754601571479,2.2938,3870.8,3870.7,2.01174]
[1754601571978,2.2938,3870.8,3870.7,1.72424]
[1754601572177,2.2938,3870.8,3870.7,0.83604]
[1754601572567,0.4518,3871.1,3870.7,1.6701]
[1754601572772,2.2938,3871.1,3871.0,2.18662]
[1754601573780,1.3616,3871.1,3871.0,2.18662]
[1754601573976,2.2938,3871.4,3871.3,0.94358]
[1754601574180,2.2938,3871.6,3871.5,2.18655]
[1754601574878,0.4429,3871.6,3871.5,5.39435]
[1754601575386,5.5016,3872.2,3872.1,2.18647]
[1754601575580,5.5016,3872.2,3872.1,0.83587]
[1754601576079,2.95068055,3872.2,3872.1,0.83587]
[1754601576469,2.2938,3872.2,3872.1,0.83587]
[1754601576673,2.2938,3872.2,3872.1,2.01157]
[1754601576873,2.2938,3872.2,3872.1,2.11917]
[1754601577075,2.2938,3872.2,3872.1,2.18647]
[1754601577475,2.2938,3872.2,3872.1,1.6028]
[1754601577677,2.2938,3872.2,3872.1,1.4952]
[1754601578575,2.2938,3872.2,3872.1,1.6701]
[1754601578777,1.3616,3872.2,3872.1,1.6701]
[1754601579179,1.0522,3872.2,3872.1,1.6701]
[1754601579381,0.7514,3872.2,3872.1,1.6701]
[1754601579679,1.3616,3872.2,3872.1,1.6701]
[1754601579981,2.2938,3872.2,3872.1,1.6701]
[1754601581180,2.2938,3872.2,3872.1,1.88024535]
[1754601581889,0.4429,3872.4,3872.3,1.6701]
[1754601582382,2.2938,3872.4,3872.3,1.6701]
[1754601583173,40.8,3872.6,3872.4,0.51633]
[1754601583374,42.1064,3872.6,3872.5,1.6039]
[1754601583579,4.0849,3872.8,3872.5,0.5833]
[1754601583781,2.1972,3872.6,3872.5,1.4721]
[1754601584882,2.1972,3872.6,3872.5,1.6039]
[1754601590185,0.7411,3872.6,3872.5,1.6039]
[1754601590484,41.2293,3872.7,3872.6,1.2314]
[1754601590688,2.1972,3872.9,3872.8,2.12018]
[1754601591789,40.8,3873.0,3872.8,2.12018]
[1754601591988,0.7411,3872.9,3872.8,1.18068]
[1754601592190,2.1972,3872.9,3872.8,1.18068]
[1754601592588,2.1972,3872.9,3872.8,2.12018]